[Event "SS Manhem Chess Week 2019 Goteborg Open"]
[Site "Molnlycke kulturhus, Biblioteksgatan 2, Molnlycke, Sweden"]
[Date "2019.08.17"]
[Round "5.2"]
[White "Le, Quang Long"]
[Black "Carlsson, Ludvig"]
[Result "1-0"]
[TimeControl "15 minutes + 5 seconds per move from move one (Round 1 - 4) / 90 minutes + 30 seconds per move from move one (Round 5 - 8)"]
[WhiteTitle "IM"]
[BlackTitle "CM"]
[WhiteFideId "12401749"]
[BlackFideId "1727010"]
[WhiteElo "2411"]
[BlackElo "2234"]

1. Nf3 {[%clk 01:09:50]} {[%emt 00:21:09]} Nf6 {[%clk 01:30:48]} {[%emt
00:00:12]} 2. c4 {[%clk 01:10:04]} {[%emt 00:00:16]} c5 {[%clk 01:30:47]}
{[%emt 00:00:30]} 3. g3 {[%clk 01:09:59]} {[%emt 00:00:36]} d5 {[%clk
01:30:53]} {[%emt 00:00:24]} 4. cxd5 {[%clk 01:10:00]} {[%emt 00:00:30]} Nxd5
{[%clk 01:31:13]} {[%emt 00:00:10]} 5. Bg2 {[%clk 01:10:24]} {[%emt 00:00:06]}
Nc6 {[%clk 01:31:33]} {[%emt 00:00:10]} 6. Nc3 {[%clk 01:10:50]} {[%emt
00:00:05]} Nc7 {[%clk 01:27:58]} {[%emt 00:04:04]} 7. a3 {[%clk 01:10:38]}
{[%emt 00:00:42]} g6 {[%clk 01:16:28]} {[%emt 00:11:59]} 8. d3 {[%clk
00:57:29]} {[%emt 00:13:40]} Bg7 {[%clk 01:14:59]} {[%emt 00:01:57]} 9. Be3
{[%clk 00:57:14]} {[%emt 00:00:46]} b6 {[%clk 01:10:19]} {[%emt 00:05:10]} 10.
Qa4 {[%clk 00:54:50]} {[%emt 00:02:55]} Bd7 {[%clk 01:02:07]} {[%emt 00:08:42]}
11. Qh4 {[%clk 00:53:50]} {[%emt 00:01:30]} Nd4 {[%clk 01:02:22]} {[%emt
00:00:16]} 12. Nxd4 {[%clk 00:46:13]} {[%emt 00:08:08]} cxd4 {[%clk 01:02:19]}
{[%emt 00:00:33]} 13. Bxd4 {[%clk 00:46:39]} {[%emt 00:00:04]} e5 {[%clk
00:55:34]} {[%emt 00:07:15]} 14. Qxd8+ {[%clk 00:46:27]} {[%emt 00:00:42]} Rxd8
{[%clk 00:55:56]} {[%emt 00:00:07]} 15. Be3 {[%clk 00:46:50]} {[%emt 00:00:07]}
Ne6 {[%clk 00:55:44]} {[%emt 00:00:43]} 16. Rc1 {[%clk 00:45:56]} {[%emt
00:01:23]} O-O {[%clk 00:55:48]} {[%emt 00:00:25]} 17. O-O {[%clk 00:46:03]}
{[%emt 00:00:24]} Nd4 {[%clk 00:55:57]} {[%emt 00:00:20]} 18. Bxd4 {[%clk
00:27:23]} {[%emt 00:19:10]} exd4 {[%clk 00:56:10]} {[%emt 00:00:17]} 19. Nd5
{[%clk 00:27:44]} {[%emt 00:00:09]} Rfe8 {[%clk 00:51:33]} {[%emt 00:05:06]} 20.
Rfe1 {[%clk 00:27:07]} {[%emt 00:01:07]} Bg4 {[%clk 00:50:23]} {[%emt
00:01:41]} 21. Kf1 {[%clk 00:27:22]} {[%emt 00:00:15]} Re5 {[%clk 00:50:29]}
{[%emt 00:00:23]} 22. Nb4 {[%clk 00:26:50]} {[%emt 00:01:02]} Rde8 {[%clk
00:50:08]} {[%emt 00:00:52]} 23. Rc2 {[%clk 00:26:52]} {[%emt 00:00:27]} Bh6
{[%clk 00:46:10]} {[%emt 00:04:27]} 24. h3 {[%clk 00:25:00]} {[%emt 00:02:23]}
Bf5 {[%clk 00:46:28]} {[%emt 00:00:12]} 25. Rd1 {[%clk 00:23:50]} {[%emt
00:01:40]} Rc5 {[%clk 00:44:02]} {[%emt 00:02:57]} 26. Rxc5 {[%clk 00:21:47]}
{[%emt 00:02:34]} bxc5 {[%clk 00:44:24]} {[%emt 00:00:07]} 27. Nc6 {[%clk
00:22:15]} {[%emt 00:00:03]} Bd7 {[%clk 00:43:35]} {[%emt 00:01:19]} 28. b4
{[%clk 00:19:19]} {[%emt 00:03:27]} cxb4 {[%clk 00:41:48]} {[%emt 00:02:16]} 29.
axb4 {[%clk 00:19:18]} {[%emt 00:00:31]} Bxc6 {[%clk 00:39:02]} {[%emt
00:03:16]} 30. Bxc6 {[%clk 00:19:44]} {[%emt 00:00:04]} Rc8 {[%clk 00:39:26]}
{[%emt 00:00:06]} 31. b5 {[%clk 00:19:59]} {[%emt 00:00:16]} Rc7 {[%clk
00:39:52]} {[%emt 00:00:05]} 32. Ra1 {[%clk 00:18:35]} {[%emt 00:01:53]} Kf8
{[%clk 00:32:40]} {[%emt 00:07:42]} 33. Ra4 {[%clk 00:18:40]} {[%emt 00:00:26]}
Bg7 {[%clk 00:33:04]} {[%emt 00:00:05]} 34. e3 {[%clk 00:14:33]} {[%emt
00:04:37]} dxe3 {[%clk 00:31:18]} {[%emt 00:02:16]} 35. fxe3 {[%clk 00:14:58]}
{[%emt 00:00:05]} Ke7 {[%clk 00:31:41]} {[%emt 00:00:07]} 36. g4 {[%clk
00:15:04]} {[%emt 00:00:24]} Kd6 {[%clk 00:27:45]} {[%emt 00:04:25]} 37. Ke2
{[%clk 00:15:20]} {[%emt 00:00:15]} Re7 {[%clk 00:24:42]} {[%emt 00:03:34]} 38.
d4 {[%clk 00:15:41]} {[%emt 00:00:08]} f5 {[%clk 00:11:46]} {[%emt 00:13:25]}
39. gxf5 {[%clk 00:15:56]} {[%emt 00:00:16]} gxf5 {[%clk 00:12:05]} {[%emt
00:00:11]} 40. Kd3 {[%clk 00:16:01]} {[%emt 00:00:25]} Rc7 {[%clk 00:07:33]}
{[%emt 00:05:02]} 41. Ra6 {[%clk 00:15:21]} {[%emt 00:01:09]} Ke7 {[%clk
00:07:17]} {[%emt 00:00:47]} 42. Bd5 {[%clk 00:15:17]} {[%emt 00:00:34]} Rd7
{[%clk 00:06:07]} {[%emt 00:01:41]} 43. Be6 {[%clk 00:11:17]} {[%emt 00:04:29]}
Rb7 {[%clk 00:06:27]} {[%emt 00:00:11]} 44. Kc4 {[%clk 00:10:18]} {[%emt
00:01:29]} Rc7+ {[%clk 00:06:31]} {[%emt 00:00:26]} 45. Kd5 {[%clk 00:10:09]}
{[%emt 00:00:38]} f4 {[%clk 00:06:38]} {[%emt 00:00:23]} 46. exf4 {[%clk
00:09:47]} {[%emt 00:00:53]} Rb7 {[%clk 00:07:02]} {[%emt 00:00:07]} 47. Kc4
{[%clk 00:09:50]} {[%emt 00:00:26]} Bh6 {[%clk 00:06:13]} {[%emt 00:01:19]} 48.
f5 {[%clk 00:09:58]} {[%emt 00:00:22]} Rc7+ {[%clk 00:06:01]} {[%emt 00:00:43]}
49. Kd3 {[%clk 00:10:17]} {[%emt 00:00:10]} Bg7 {[%clk 00:06:13]} {[%emt
00:00:18]} 50. Ke4 {[%clk 00:09:28]} {[%emt 00:01:19]} Rb7 {[%clk 00:05:47]}
{[%emt 00:00:57]} 51. Bd5 {[%clk 00:09:26]} {[%emt 00:00:31]} Rd7 {[%clk
00:06:03]} {[%emt 00:00:14]} 52. Re6+ {[%clk 00:09:21]} {[%emt 00:00:34]} Kf7
{[%clk 00:06:05]} {[%emt 00:00:28]} 53. h4 {[%clk 00:09:03]} {[%emt 00:00:48]}
Re7 {[%clk 00:05:35]} {[%emt 00:01:00]} 54. h5 {[%clk 00:05:45]} {[%emt
00:03:47]} Rxe6+ {[%clk 00:05:32]} {[%emt 00:00:33]} 55. Bxe6+ {[%clk
00:06:11]} {[%emt 00:00:05]} Ke7 {[%clk 00:05:11]} {[%emt 00:00:51]} 56. Kd5
{[%clk 00:06:36]} {[%emt 00:00:05]} Kd8 {[%clk 00:05:13]} {[%emt 00:00:28]} 57.
h6 {[%clk 00:04:45]} {[%emt 00:02:21]} Bxh6 {[%clk 00:05:21]} {[%emt 00:00:22]}
58. f6 {[%clk 00:03:41]} {[%emt 00:01:34]} Bg5 {[%clk 00:02:50]} {[%emt
00:03:01]} 59. Ke5 {[%clk 00:04:06]} {[%emt 00:00:05]} Bd2 {[%clk 00:02:48]}
{[%emt 00:00:32]} 60. Bf5 {[%clk 00:04:00]} {[%emt 00:00:35]} h5 {[%clk
00:02:51]} {[%emt 00:00:27]} 61. d5 {[%clk 00:03:41]} {[%emt 00:00:50]} h4
{[%clk 00:00:54]} {[%emt 00:02:27]} 62. d6 {[%clk 00:03:50]} {[%emt 00:00:21]}
Bh6 {[%clk 00:00:33]} {[%emt 00:00:51]} 63. Ke6 {[%clk 00:01:51]} {[%emt
00:02:29]} Bf4 {[%clk 00:00:34]} {[%emt 00:00:30]} 64. Bg4 {[%clk 00:01:47]}
{[%emt 00:00:33]} Be3 {[%clk 00:00:36]} {[%emt 00:00:28]} 65. Kf7 {[%clk
00:01:40]} {[%emt 00:00:36]} Bf4 {[%clk 00:00:33]} {[%emt 00:00:34]} 66. d7
{[%clk 00:02:00]} {[%emt 00:00:10]} Be5 {[%clk 00:00:32]} {[%emt 00:00:31]} 67.
Kg6 {[%clk 00:01:29]} {[%emt 00:01:00]} Bd6 {[%clk 00:00:56]} {[%emt 00:00:06]}
68. Kh7 {[%clk 00:01:46]} {[%emt 00:00:13]} Bf8 {[%clk 00:00:51]} {[%emt
00:00:36]} 69. Kg8 {[%clk 00:02:08]} {[%emt 00:00:07]} Bh6 {[%clk 00:01:14]}
{[%emt 00:00:07]} 70. Bh3 {[%clk 00:02:28]} {[%emt 00:00:09]} Bg5 {[%clk
00:00:31]} {[%emt 00:01:14]} 71. f7 {[%clk 00:02:38]} {[%emt 00:00:20]} 1-0

[Event "SS Manhem Chess Week 2019 Goteborg Open"]
[Site "Molnlycke kulturhus, Biblioteksgatan 2, Molnlycke, Sweden"]
[Date "2019.08.17"]
[Round "5.4"]
[White "Ziegler, Ari"]
[Black "Blomqvist, Erik"]
[Result "0-1"]
[TimeControl "15 minutes + 5 seconds per move from move one (Round 1 - 4) / 90 minutes + 30 seconds per move from move one (Round 5 - 8)"]
[WhiteTitle "IM"]
[BlackTitle "GM"]
[WhiteFideId "1700987"]
[BlackFideId "1709437"]
[WhiteElo "2300"]
[BlackElo "2507"]

1. e4 {[%clk 01:30:58]} {[%emt 00:00:01]} c5 {[%clk 01:30:53]} {[%emt
00:00:07]} 2. Nf3 {[%clk 01:31:22]} {[%emt 00:00:07]} e6 {[%clk 01:31:16]}
{[%emt 00:00:07]} 3. d4 {[%clk 01:31:47]} {[%emt 00:00:05]} cxd4 {[%clk
01:31:38]} {[%emt 00:00:08]} 4. Nxd4 {[%clk 01:32:12]} {[%emt 00:00:04]} a6
{[%clk 01:31:03]} {[%emt 00:01:05]} 5. Nc3 {[%clk 01:32:34]} {[%emt 00:00:08]}
b5 {[%clk 01:31:18]} {[%emt 00:00:15]} 6. g3 {[%clk 01:32:57]} {[%emt
00:00:07]} Bb7 {[%clk 01:31:35]} {[%emt 00:00:14]} 7. Bg2 {[%clk 01:33:20]}
{[%emt 00:00:06]} Nf6 {[%clk 01:31:52]} {[%emt 00:00:13]} 8. O-O {[%clk
01:33:42]} {[%emt 00:00:08]} b4 {[%clk 01:32:14]} {[%emt 00:00:09]} 9. Na4
{[%clk 01:34:05]} {[%emt 00:00:08]} Bxe4 {[%clk 01:32:33]} {[%emt 00:00:10]} 10.
Bxe4 {[%clk 01:34:29]} {[%emt 00:00:06]} Nxe4 {[%clk 01:32:56]} {[%emt
00:00:06]} 11. Re1 {[%clk 01:34:55]} {[%emt 00:00:04]} Nc5 {[%clk 01:33:08]}
{[%emt 00:00:19]} 12. c3 {[%clk 01:26:44]} {[%emt 00:08:41]} Nxa4 {[%clk
01:33:11]} {[%emt 00:00:26]} 13. Qxa4 {[%clk 01:27:05]} {[%emt 00:00:09]} Be7
{[%clk 01:33:17]} {[%emt 00:00:24]} 14. Bf4 {[%clk 01:16:34]} {[%emt 00:11:01]}
O-O {[%clk 01:31:32]} {[%emt 00:02:15]} 15. Rad1 {[%clk 01:16:13]} {[%emt
00:00:52]} bxc3 {[%clk 01:28:13]} {[%emt 00:03:49]} 16. bxc3 {[%clk 01:15:48]}
{[%emt 00:00:54]} Qb6 {[%clk 00:57:04]} {[%emt 00:31:39]} 17. Bxb8 {[%clk
00:54:53]} {[%emt 00:21:24]} Rfxb8 {[%clk 00:53:44]} {[%emt 00:03:51]} 18. Qxd7
{[%clk 00:55:11]} {[%emt 00:00:12]} Rb7 {[%clk 00:48:41]} {[%emt 00:05:33]} 19.
Qa4 {[%clk 00:54:18]} {[%emt 00:01:23]} Bf6 {[%clk 00:45:31]} {[%emt 00:03:41]}
20. Re3 {[%clk 00:48:49]} {[%emt 00:05:59]} Rc8 {[%clk 00:42:22]} {[%emt
00:03:38]} 21. Ne2 {[%clk 00:42:10]} {[%emt 00:07:10]} h6 {[%clk 00:40:23]}
{[%emt 00:02:29]} 22. h4 {[%clk 00:37:55]} {[%emt 00:04:44]} Rbc7 {[%clk
00:39:17]} {[%emt 00:01:37]} 23. Qc2 {[%clk 00:33:02]} {[%emt 00:05:23]} Rc4
{[%clk 00:37:28]} {[%emt 00:02:18]} 24. Rb1 {[%clk 00:28:36]} {[%emt 00:04:55]}
Qc6 {[%clk 00:35:39]} {[%emt 00:02:19]} 25. Rb3 {[%clk 00:26:59]} {[%emt
00:02:07]} Ra4 {[%clk 00:33:27]} {[%emt 00:02:42]} 26. Qb1 {[%clk 00:26:01]}
{[%emt 00:01:27]} Ra5 {[%clk 00:29:15]} {[%emt 00:04:43]} 27. Qb2 {[%clk
00:17:42]} {[%emt 00:08:49]} Rd8 {[%clk 00:24:21]} {[%emt 00:05:23]} 28. Rb8
{[%clk 00:17:19]} {[%emt 00:00:54]} Rxb8 {[%clk 00:21:21]} {[%emt 00:03:31]} 29.
Qxb8+ {[%clk 00:17:40]} {[%emt 00:00:08]} Kh7 {[%clk 00:21:48]} {[%emt
00:00:02]} 30. Qb1+ {[%clk 00:17:34]} {[%emt 00:00:36]} g6 {[%clk 00:22:11]}
{[%emt 00:00:07]} 31. Nf4 {[%clk 00:05:43]} {[%emt 00:12:21]} Rb5 {[%clk
00:14:19]} {[%emt 00:08:23]} 32. Qc2 {[%clk 00:05:47]} {[%emt 00:00:26]} Qb7
{[%clk 00:14:23]} {[%emt 00:00:26]} 33. Re1 {[%clk 00:05:00]} {[%emt 00:01:17]}
h5 {[%clk 00:14:28]} {[%emt 00:00:25]} 34. a4 {[%clk 00:04:16]} {[%emt
00:01:15]} Rc5 {[%clk 00:13:54]} {[%emt 00:01:04]} 35. c4 {[%clk 00:03:37]}
{[%emt 00:01:09]} Qb4 {[%clk 00:11:00]} {[%emt 00:03:24]} 36. Re4 {[%clk
00:03:41]} {[%emt 00:00:26]} Rf5 {[%clk 00:05:22]} {[%emt 00:06:08]} 37. Nd3
{[%clk 00:04:05]} {[%emt 00:00:07]} Qa3 {[%clk 00:05:45]} {[%emt 00:00:06]} 38.
Rf4 {[%clk 00:03:55]} {[%emt 00:00:40]} Rxf4 {[%clk 00:05:52]} {[%emt
00:00:23]} 39. Nxf4 {[%clk 00:04:23]} {[%emt 00:00:02]} Bd4 {[%clk 00:06:16]}
{[%emt 00:00:06]} 40. Kg2 {[%clk 00:04:25]} {[%emt 00:00:28]} Qc5 {[%clk
00:06:30]} {[%emt 00:00:17]} 41. Nd3 {[%clk 00:04:31]} {[%emt 00:00:24]} Qc6+
{[%clk 00:06:40]} {[%emt 00:00:20]} 42. f3 {[%clk 00:04:41]} {[%emt 00:00:20]}
e5 {[%clk 00:06:27]} {[%emt 00:00:42]} 43. Nb4 {[%clk 00:03:47]} {[%emt
00:01:24]} Qd6 {[%clk 00:06:34]} {[%emt 00:00:23]} 44. Nd5 {[%clk 00:04:09]}
{[%emt 00:00:08]} Qa3 {[%clk 00:06:15]} {[%emt 00:00:49]} 45. Nf6+ {[%clk
00:03:16]} {[%emt 00:01:23]} Kg7 {[%clk 00:06:42]} {[%emt 00:00:03]} 46. Ne4
{[%clk 00:03:37]} {[%emt 00:00:09]} Qa1 {[%clk 00:03:16]} {[%emt 00:03:57]} 47.
Nf2 {[%clk 00:01:59]} {[%emt 00:02:07]} Bc5 {[%clk 00:03:25]} {[%emt 00:00:21]}
48. Nh3 {[%clk 00:02:16]} {[%emt 00:00:13]} a5 {[%clk 00:01:29]} {[%emt
00:02:26]} 49. f4 {[%clk 00:00:59]} {[%emt 00:01:47]} exf4 {[%clk 00:01:29]}
{[%emt 00:00:31]} 50. gxf4 {[%clk 00:01:26]} {[%emt 00:00:03]} Qf6 {[%clk
00:00:36]} {[%emt 00:01:23]} 51. Kg3 {[%clk 00:01:42]} {[%emt 00:00:14]} Qe6
{[%clk 00:00:33]} {[%emt 00:00:33]} 52. Kh2 {[%clk 00:01:48]} {[%emt 00:00:23]}
Bd4 {[%clk 00:00:32]} {[%emt 00:00:32]} 53. Qd3 {[%clk 00:01:23]} {[%emt
00:00:54]} Bf6 {[%clk 00:00:49]} {[%emt 00:00:13]} 54. f5 {[%clk 00:00:55]}
{[%emt 00:00:58]} Qe5+ {[%clk 00:01:01]} {[%emt 00:00:18]} 55. Kg2 {[%clk
00:01:12]} {[%emt 00:00:12]} Qb2+ {[%clk 00:01:09]} {[%emt 00:00:22]} 56. Kf3
{[%clk 00:00:44]} {[%emt 00:00:58]} Qh2 {[%clk 00:00:59]} {[%emt 00:00:39]} 57.
Nf4 {[%clk 00:01:04]} {[%emt 00:00:10]} Qh1+ {[%clk 00:00:45]} {[%emt
00:00:44]} 58. Ke3 {[%clk 00:00:48]} {[%emt 00:00:46]} Qxh4 {[%clk 00:00:44]}
{[%emt 00:00:31]} 59. fxg6 {[%clk 00:00:57]} {[%emt 00:00:21]} Be5 {[%clk
00:00:40]} {[%emt 00:00:34]} 60. Nd5 {[%clk 00:00:54]} {[%emt 00:00:32]} fxg6
{[%clk 00:00:52]} {[%emt 00:00:19]} 61. Qe4 {[%clk 00:00:56]} {[%emt 00:00:28]}
Qe1+ {[%clk 00:00:49]} {[%emt 00:00:33]} 62. Kf3 {[%clk 00:01:08]} {[%emt
00:00:18]} Qg3+ {[%clk 00:00:44]} {[%emt 00:00:35]} 63. Ke2 {[%clk 00:01:36]}
{[%emt 00:00:01]} h4 {[%clk 00:00:58]} {[%emt 00:00:16]} 64. c5 {[%clk
00:01:27]} {[%emt 00:00:39]} h3 {[%clk 00:01:22]} {[%emt 00:00:05]} 65. c6
{[%clk 00:01:50]} {[%emt 00:00:08]} Kh6 {[%clk 00:00:34]} {[%emt 00:01:18]} 66.
Ne3 {[%clk 00:00:58]} {[%emt 00:01:22]} Kg5 {[%clk 00:00:43]} {[%emt 00:00:21]}
67. Qd5 {[%clk 00:00:54]} {[%emt 00:00:34]} Kh6 {[%clk 00:00:42]} {[%emt
00:00:31]} 68. Qe4 {[%clk 00:00:45]} {[%emt 00:00:39]} Kh5 {[%clk 00:00:45]}
{[%emt 00:00:27]} 69. Qd5 {[%clk 00:00:44]} {[%emt 00:00:31]} Kh4 {[%clk
00:00:46]} {[%emt 00:00:29]} 70. Qf7 {[%clk 00:00:41]} {[%emt 00:00:32]} h2
{[%clk 00:00:39]} {[%emt 00:00:37]} 71. Qh7+ {[%clk 00:00:54]} {[%emt
00:00:17]} Kg5 {[%clk 00:01:07]} {[%emt 00:00:02]} 72. Qe7+ {[%clk 00:00:39]}
{[%emt 00:00:46]} Kh6 {[%clk 00:01:21]} {[%emt 00:00:16]} 73. c7 {[%clk
00:00:44]} {[%emt 00:00:25]} h1=Q {[%clk 00:01:29]} {[%emt 00:00:21]} 0-1

[Event "SS Manhem Chess Week 2019 Goteborg Open"]
[Site "Molnlycke kulturhus, Biblioteksgatan 2, Molnlycke, Sweden"]
[Date "2019.08.17"]
[Round "5.5"]
[White "Castrillon Gomez, Melissa"]
[Black "Hector, Jonny"]
[Result "0-1"]
[TimeControl "15 minutes + 5 seconds per move from move one (Round 1 - 4) / 90 minutes + 30 seconds per move from move one (Round 5 - 8)"]
[WhiteTitle "WIM"]
[BlackTitle "GM"]
[WhiteFideId "4402413"]
[BlackFideId "1700090"]
[WhiteElo "2227"]
[BlackElo "2493"]

1. d4 {[%clk 01:29:27]} {[%emt 00:01:33]} d5 {[%clk 01:30:55]} {[%emt
00:00:04]} 2. c4 {[%clk 01:29:47]} {[%emt 00:00:11]} c6 {[%clk 01:31:17]}
{[%emt 00:00:07]} 3. Nf3 {[%clk 01:30:13]} {[%emt 00:00:05]} Nf6 {[%clk
01:31:41]} {[%emt 00:00:04]} 4. e3 {[%clk 01:30:36]} {[%emt 00:00:09]} Bf5
{[%clk 01:32:03]} {[%emt 00:00:07]} 5. Nc3 {[%clk 01:30:50]} {[%emt 00:00:17]}
e6 {[%clk 01:32:13]} {[%emt 00:00:19]} 6. Nh4 {[%clk 01:30:56]} {[%emt
00:00:25]} Be4 {[%clk 01:32:30]} {[%emt 00:00:12]} 7. f3 {[%clk 01:31:15]}
{[%emt 00:00:13]} Bg6 {[%clk 01:32:54]} {[%emt 00:00:04]} 8. Qb3 {[%clk
01:31:39]} {[%emt 00:00:08]} Qc7 {[%clk 01:33:03]} {[%emt 00:00:20]} 9. Bd2
{[%clk 01:31:22]} {[%emt 00:00:48]} Be7 {[%clk 01:33:17]} {[%emt 00:00:14]} 10.
g3 {[%clk 01:29:18]} {[%emt 00:02:36]} Nbd7 {[%clk 01:30:33]} {[%emt 00:03:13]}
11. cxd5 {[%clk 01:27:03]} {[%emt 00:02:46]} exd5 {[%clk 01:29:09]} {[%emt
00:01:53]} 12. Nxg6 {[%clk 01:16:23]} {[%emt 00:11:11]} hxg6 {[%clk 01:29:21]}
{[%emt 00:00:17]} 13. e4 {[%clk 01:16:24]} {[%emt 00:00:31]} Nb6 {[%clk
01:23:17]} {[%emt 00:06:33]} 14. e5 {[%clk 01:01:47]} {[%emt 00:15:08]} Nh7
{[%clk 01:21:17]} {[%emt 00:02:29]} 15. O-O-O {[%clk 00:55:20]} {[%emt
00:06:59]} Nf8 {[%clk 01:19:09]} {[%emt 00:02:36]} 16. Kb1 {[%clk 00:51:09]}
{[%emt 00:04:42]} Ne6 {[%clk 01:18:49]} {[%emt 00:00:49]} 17. Be3 {[%clk
00:51:12]} {[%emt 00:00:29]} a5 {[%clk 01:17:15]} {[%emt 00:02:03]} 18. f4
{[%clk 00:47:28]} {[%emt 00:04:15]} a4 {[%clk 01:16:04]} {[%emt 00:01:40]} 19.
Qc2 {[%clk 00:47:42]} {[%emt 00:00:17]} a3 {[%clk 01:07:47]} {[%emt 00:08:47]}
20. b3 {[%clk 00:46:59]} {[%emt 00:01:13]} Bb4 {[%clk 01:06:14]} {[%emt
00:02:02]} 21. Bd3 {[%clk 00:39:48]} {[%emt 00:07:43]} Nd7 {[%clk 00:59:21]}
{[%emt 00:07:21]} 22. Rc1 {[%clk 00:29:09]} {[%emt 00:11:10]} Qa5 {[%clk
00:54:02]} {[%emt 00:05:48]} 23. Ne2 {[%clk 00:26:14]} {[%emt 00:03:26]} O-O-O
{[%clk 00:51:04]} {[%emt 00:03:27]} 24. g4 {[%clk 00:23:04]} {[%emt 00:03:42]}
Rh3 {[%clk 00:48:38]} {[%emt 00:02:55]} 25. f5 {[%clk 00:18:08]} {[%emt
00:05:27]} Rxe3 {[%clk 00:47:24]} {[%emt 00:01:42]} 26. fxe6 {[%clk 00:18:34]}
{[%emt 00:00:05]} fxe6 {[%clk 00:47:36]} {[%emt 00:00:17]} 27. Nf4 {[%clk
00:18:12]} {[%emt 00:00:54]} Nf8 {[%clk 00:44:25]} {[%emt 00:03:40]} 28. Qf2
{[%clk 00:17:24]} {[%emt 00:01:19]} Bd2 {[%clk 00:43:33]} {[%emt 00:01:20]} 29.
Rcd1 {[%clk 00:10:48]} {[%emt 00:07:08]} g5 {[%clk 00:42:37]} {[%emt 00:01:25]}
30. Rxd2 {[%clk 00:09:25]} {[%emt 00:01:55]} gxf4 {[%clk 00:42:49]} {[%emt
00:00:17]} 31. Rc1 {[%clk 00:06:13]} {[%emt 00:03:43]} Qb4 {[%clk 00:40:44]}
{[%emt 00:02:34]} 32. Bc2 {[%clk 00:05:48]} {[%emt 00:00:56]} g5 {[%clk
00:40:17]} {[%emt 00:00:55]} 33. Rd3 {[%clk 00:03:29]} {[%emt 00:02:51]} Nd7
{[%clk 00:38:11]} {[%emt 00:02:35]} 34. h4 {[%clk 00:02:48]} {[%emt 00:01:12]}
gxh4 {[%clk 00:37:46]} {[%emt 00:00:54]} 35. Qxf4 {[%clk 00:02:51]} {[%emt
00:00:27]} Rg3 {[%clk 00:35:27]} {[%emt 00:02:49]} 36. Rxg3 {[%clk 00:00:33]}
{[%emt 00:02:50]} hxg3 {[%clk 00:35:37]} {[%emt 00:00:19]} 37. Qe3 {[%clk
00:00:42]} {[%emt 00:00:22]} Rf8 {[%clk 00:34:47]} {[%emt 00:01:17]} 38. Bd1
{[%clk 00:00:39]} {[%emt 00:00:35]} g2 {[%clk 00:32:25]} {[%emt 00:02:51]} 39.
Bf3 {[%clk 00:00:40]} {[%emt 00:00:31]} Rxf3 {[%clk 00:32:11]} {[%emt
00:00:42]} 40. Qxf3 {[%clk 00:01:09]} {[%emt 00:00:03]} Qd2 {[%clk 00:32:22]}
{[%emt 00:00:18]} 0-1